Cogmind - Beta 14 @@@ ROGUE MODE // 2024.09.12 @ 12:16:25 Player: ZarZap Result: Destroyed by G-34 Mercenary with Small Laser Performance ------------- Evolutions (1) 500 Regions Visited (3) 600 Robots Destroyed (35) 175 Value Destroyed (940) 940 Prototype IDs (0) 0 Alien Tech Used (0) 0 Bonus (49) 49 TOTAL SCORE: 2264 Bonus ------- High Alert Combat Kills 49 Cogmind --------- Core Integrity 0/400 Matter 219/300 Energy 285/290 System Corruption 0% Temperature Warning (308) Movement Walking (330) Ox3 Location -9/Materials Parts ------- > --- POWER (2) -------- Light Ion Engine Improved Ion Engine > --- PROPULSION (2) --- Aluminum Leg > --- UTILITY (3) ------ Large Storage Unit Structural Scanner Signal Interpreter > --- WEAPON (2) ------- Small Laser Beam Rifle > --- INVENTORY (15) --- Ion Engine Light Ion Engine Light Ion Engine Weight Redist. System Signal Interpreter Peak State ------------ > --- POWER ------------ Ion Engine Improved Ion Engine > --- PROPULSION ------- Aluminum Leg Aluminum Leg > --- UTILITY ---------- Large Storage Unit Structural Scanner Signal Interpreter > --- WEAPON ----------- Autogun Autogun > --- INVENTORY -------- Ion Engine Light Ion Engine Light Ion Engine Light Ion Engine Weight Redist. System Signal Interpreter Small Laser Beam Rifle [Rating: 13] Favorites ----------- Power Ion Engine Engine Ion Engine Propulsion Aluminum Leg Leg Aluminum Leg Utility Signal Interpreter Device Structural Scanner Storage Large Storage Unit Processor Signal Interpreter Weapon Autogun Energy Gun Small Laser Ballistic Gun Autogun Ballistic Cannon Light Cannon Launcher Grenade Launcher Build | -11 -10 -10 -9 ------- Run | Yrd Mat Min Mat Slots Evolved 2 | . . . 2 Power 1 | . . . 1 Propulsion . | . . . . Utility 1 | . . . 1 Weapon . | . . . . Parts Attached 34 | 6 1 3 24 Power 7 | 1 . . 6 Engine 7 | 1 . . 6 Core . | . . . . Reactor . | . . . . Propulsion 7 | 2 . . 5 Treads . | . . . . Leg 7 | 2 . . 5 Wheel . | . . . . Hover . | . . . . Flight . | . . . . Utility 6 | 1 1 1 3 Device 2 | . 1 . 1 Storage 3 | 1 . 1 1 Processor 1 | . . . 1 Hackware . | . . . . Protection . | . . . . Artifact . | . . . . Weapon 14 | 2 . 2 10 Energy Gun 6 | 1 . . 5 Energy Cannon . | . . . . Ballistic Gun 6 | 1 . 1 4 Ballistic Cannon 1 | . . . 1 Launcher 1 | . . 1 . Special Weapon . | . . . . Impact Weapon . | . . . . Slashing Weapon . | . . . . Piercing Weapon . | . . . . Special Melee Weapon . | . . . . Unidentified Prototypes . | . . . . Parts Lost 16 | . . 2 14 Power 3 | . . . 3 Propulsion 5 | . . 1 4 Utility 1 | . . . 1 Weapon 7 | . . 1 6 Highest Loss Streak 4 | . . 1 4 To Critical Strikes . | . . . . Average Slot Usage (%) 88 | . 90 96 84 Engine 16 | . 14 14 18 Leg 16 | . 28 25 12 Device 10 | . 5 14 10 Storage 12 | . 14 14 11 Processor 7 | . . . 11 Energy Gun 5 | . 14 10 2 Ballistic Gun 13 | . 14 12 14 Ballistic Cannon 1 | . . . 2 Launcher 2 | . . 4 1 Peak Build Rating 13 | 6 7 7 13 Average Rating 8 | 4 6 6 9 On Entrance 4 | . 6 7 6 Naked Turns . | . . . . Heaviest Build 37 | 13 14 20 37 Greatest Support 20 | 20 20 20 20 Greatest Overweight (x) 12 | 1 . 1 12 Average Overweight (x) 1 | . . . 3 Largest Inventory Capacity 15 | 8 8 10 15 Average Capacity 12 | 7 8 8 14 Most Carried 8 | 2 4 8 8 Average Carried 5 | . 2 5 5 Final Capacity 15 | 8 8 10 15 Final Carried 8 | 2 3 8 5 Class Distribution -------------------- 96% | Mutant 3% | Scavenger-Mutant Dominant Class ---------------- Mutant | -10/Materials Mutant | -10/Mines Mutant | -9/Materials Resources | -11 -10 -10 -9 ----------- Run | Yrd Mat Min Mat Matter Collected 1075 | 170 . 256 649 Remotely . | . . . . Salvage Created 1187 | . . 172 1015 Parts 71 | . . 13 58 Haulers Intercepted . | . . . . Recyclers Shooed . | . . . . Parts Field Recycled . | . . . . Retrieved Matter . | . . . . Parts Self-Destructed . | . . . . Prevented . | . . . . Kills | -11 -10 -10 -9 ------- Run | Yrd Mat Min Mat Combat Hostiles Destroyed 36 | . . 9 27 Guns 23 | . . 5 18 Cannons 9 | . . . 9 AOE 4 | . . 4 . Classes Destroyed 8 | . . 4 4 Worker 1 | . . 1 . Recycler 1 | . . . 1 Watcher 1 | . . . 1 Swarmer 11 | . . 3 8 Grunt 13 | . . 2 11 Brawler 2 | . . . 2 Sentry 6 | . . . 6 Assembled 4 | . . 4 . Best Kill Streak 7 | . . 4 7 Combat Bots Only 7 | . . 4 7 Max Kills in Single Turn 2 | . . 2 1 Gunslinging 1 | . . 1 . Exploded 1 | . . 1 . Melee . | . . . . Uniques/NPCs Destroyed . | . . . . Combat | -11 -10 -10 -9 -------- Run | Yrd Mat Min Mat Hostile Shots Fired 283 | . . 61 222 Missed 76 | . . 12 64 Damage Taken 2377 | . . 526 1851 Core 513 | . . 109 404 Absorbed by Shields . | . . . . Core Remaining (%) 78 | 100 . 56 . Volleys Fired 117 | . 1 27 89 Largest 2 | . 2 2 2 Hottest 96 | . 60 70 96 Shots Fired 230 | . 2 54 174 Gun 195 | . 2 47 146 Cannon 27 | . . . 27 Launcher 8 | . . 7 1 Special . | . . . . Kinetic 170 | . 1 26 143 Thermal 45 | . 1 21 23 Explosive 8 | . . 7 1 Electromagnetic 7 | . . . 7 Robot Hit Streak 10 | . . 5 10 Robot Miss Streak 5 | . 2 4 5 Penetration Max . | . . . . Secondary Targets 4 | . . 1 3 Max Gunslinging Chain 1 | . . 1 1 Shots Hit Robots 144 | . . 30 114 Core Hits 59 | . . 16 43 Critical Kills . | . . . . Critical Parts Destroyed 1 | . . . 1 Critical Strikes 3 | . . . 3 Burn 1 | . . . 1 Destroy 1 | . . . 1 Blast 1 | . . . 1 Melee Attacks . | . . . . Impact . | . . . . Slashing . | . . . . Piercing . | . . . . Sneak Attacks . | . . . . Combat Hostiles . | . . . . Follow-up Attacks . | . . . . Damage Inflicted 2254 | . . 607 1647 Guns 1604 | . . 332 1272 Cannons 352 | . . . 352 Explosions 292 | . . 269 23 Melee . | . . . . Ramming 6 | . . 6 . Kinetic 1600 | . . 226 1374 Thermal 302 | . . 106 196 Explosive 292 | . . 269 23 Electromagnetic 54 | . . . 54 Impact . | . . . . Slashing . | . . . . Piercing . | . . . . Highest Corruption . | . . . . Average Corruption . | . . . . Corruption Purged . | . . . . Corruption Blocked . | . . . . Overload Shots . | . . . . Overflow Damage 9 | . . 9 . Projectiles . | . . . . Explosions 9 | . . 9 . Melee . | . . . . Knockbacks 2 | . . . 2 Impact . | . . . . Kinetic 2 | . . . 2 Secondary . | . . . . Self-Inflicted Damage 5 | . . 5 . Shots 1 | . . 1 . Rammed . | . . . . Targets Rammed 1 | . . 1 . Kicked 1 | . . 1 . Crushed . | . . . . Highest Temperature 302 | . . 177 302 Average Temperature 53 | . . 80 48 Received Heat Transfer 918 | . . 192 726 Siege Activations . | . . . . Robots Corrupted . | . . . . Combat Hostiles . | . . . . Parts Fried . | . . . . Impact Corruptions . | . . . . Robots Melted . | . . . . Combat Hostiles . | . . . . Parts Melted . | . . . . Heat Transferred 807 | . . 250 557 Parts Sabotaged . | . . . . Parts Stolen . | . . . . Parts Stripped . | . . . . Power Chain Reactions . | . . . . Alert | -11 -10 -10 -9 ------- Run | Yrd Mat Min Mat Peak Influence 517 | . 15 153 517 Initial 5 | . . 5 . Average 136 | . 1 74 185 Maximum Alert Level 2 | . . . 2 Low Security (%) 73 | 100 100 100 57 Level 1 19 | . . . 30 Level 2 7 | . . . 12 Level 3 . | . . . . Level 4 . | . . . . Level 5 . | . . . . High Security . | . . . . Max Security . | . . . . Squads Dispatched 5 | . . . 5 Investigation 1 | . . . 1 Extermination . | . . . . Reinforcement 4 | . . . 4 Assault . | . . . . Garrison . | . . . . Intercept . | . . . . Searches Triggered . | . . . . Construction Impeded . | . . . . Haulers Reinforced . | . . . . Active Scanning Responses . | . . . . Cargo Convoy Interrupts . | . . . . Stealth | -11 -10 -10 -9 --------- Run | Yrd Mat Min Mat Distress Signals 2 | . 1 . 1 Communications Jammed . | . . . . Distress Signals . | . . . . Times Spotted 48 | . 2 9 37 Peak Tracking Total 9 | . 2 7 9 Tactical Retreats 3 | . . . 3 Traps | -11 -10 -10 -9 ------- Run | Yrd Mat Min Mat Traps Triggered . | . . . . Indirectly . | . . . . Trap Hack Attempts . | . . . . Triggered . | . . . . Disarmed . | . . . . Reprogrammed . | . . . . Reused . | . . . . Traps Extracted . | . . . . Installed . | . . . . Triggered . | . . . . Machines | -11 -10 -10 -9 ---------- Run | Yrd Mat Min Mat Machines Disabled 2 | . 1 . 1 Max in Single Turn 1 | . 1 . 1 Machines Repaired . | . . . . Machines Dismantled . | . . . . Machines Sabotaged . | . . . . Overloaded Fab Kills . | . . . . Hacking | -11 -10 -10 -9 --------- Run | Yrd Mat Min Mat Machines Accessed 2 | . 1 . 1 Terminals 1 | . 1 . . Fabricators . | . . . . Repair Stations . | . . . . Recycling Units . | . . . . Scanalyzers 1 | . . . 1 Garrison Access . | . . . . Total Hacks 8 | . 2 . 6 Successful 7 | . 1 . 6 Failed 1 | . 1 . . Catastrophic . | . . . . Database Lockouts . | . . . . Manual . | . . . . Terminals 2 | . 2 . . Fabricators . | . . . . Repair Stations . | . . . . Recycling Units . | . . . . Scanalyzers 6 | . . . 6 Garrison Access . | . . . . Terminal Hacks 1 | . 1 . . Dispatch Records 1 | . 1 . . Fabricator Hacks . | . . . . Repair Station Hacks . | . . . . Recycling Unit Hacks . | . . . . Scanalyzer 6 | . . . 6 Insert Component 3 | . . . 3 Analyze 3 | . . . 3 Garrison Access Hacks . | . . . . Unauthorized Hacks . | . . . . Terminals . | . . . . Fabricators . | . . . . Repair Stations . | . . . . Recycling Units . | . . . . Scanalyzers . | . . . . Garrison Access . | . . . . Data Cores Recovered . | . . . . Used . | . . . . Hacking Detections 1 | . . . 1 Full Trace Events 1 | . . . 1 Feedback Events . | . . . . Feedback Blocked . | . . . . Robot Schematics Acquired . | . . . . Robots Built . | . . . . Authchips . | . . . . Time . | . . . . Total Robot Build Rating . | . . . . Part Schematics Acquired 3 | . . . 3 Parts Built . | . . . . Authchips . | . . . . Time . | . . . . Total Part Build Rating . | . . . . Parts Repaired . | . . . . Time . | . . . . Parts Recycled . | . . . . Recycled Matter . | . . . . Retrieved Matter . | . . . . Retrieved Components . | . . . . Parts Scanalyzed 3 | . . . 3 Part Schematics Acquired 3 | . . . 3 Parts Damaged . | . . . . Bothacking | -11 -10 -10 -9 ------------ Run | Yrd Mat Min Mat Used RIF Installer . | . . . . Robots Hacked . | . . . . Non-combat . | . . . . Combat . | . . . . Robot Hacks Applied . | . . . . Relay Couplers Released . | . . . . Fabnet Peak Effective % . | . . . . Robots Rewired . | . . . . Allies Hacked . | . . . . Hacks Repelled . | . . . . Allies | -11 -10 -10 -9 -------- Run | Yrd Mat Min Mat Total Allies . | . . . . Largest Group . | . . . . Highest-Rated Group . | . . . . Highest-Rated Ally . | . . . . Total Orders . | . . . . Ally Attacks . | . . . . Total Damage . | . . . . Kills . | . . . . Allies Corrupted . | . . . . Allies Melted . | . . . . Intel | -11 -10 -10 -9 ------- Run | Yrd Mat Min Mat Robot Analysis Total . | . . . . Derelict Logs Recovered 1 | . . 1 . Drone Launches . | . . . . Drone Recoveries . | . . . . Exploration | -11 -10 -10 -9 ------------- Run | Yrd Mat Min Mat Turns Passed 1652 | 50 132 436 1034 Spaces Moved 664 | 35 106 254 269 Core 53 | 4 . . 49 Treads . | . . . . Legs 611 | 31 106 254 220 Wheels . | . . . . Hover . | . . . . Flight . | . . . . Fastest Speed 50 | 50 120 120 190 Average Speed 189 | 114 120 132 279 Slowest Speed 650 | 120 120 190 650 Overloaded Moves . | . . . . Propulsion Burnouts . | . . . . Robots Hopped . | . . . . Cave-ins Triggered . | . . . . Exploration Rate (%) 31 | 4 28 58 34 Regions Visited 3 Branch Regions 1 Pre-discovered Areas . | . . . . Known Exits Taken . | . . . . Unknown Exits Taken 3 | 1 1 1 . Scrap Searched 1 | . . 1 . Spaces Dug . | . . . . Terrain Destroyed 73 | . . 63 10 Melee . | . . . . Projectile . | . . . . AOE 73 | . . 63 10 Terrain Rammed . | . . . . Walls Destroyed . | . . . . Machines Disabled . | . . . . Actions | -11 -10 -10 -9 --------- Run | Yrd Mat Min Mat Total 849 | 42 109 301 397 Wait 12 | . . 10 2 Move 661 | 34 105 253 269 Hop . | . . . . Pick Up 18 | 2 2 6 8 Fast Attach 16 | 6 . 1 9 Attach 11 | . 1 1 9 Detach . | . . . . Swap 7 | . . 1 6 Drop 6 | . . 1 5 Fire 117 | . 1 27 89 Melee . | . . . . Ram . | . . . . Kick 1 | . . 1 . Crush . | . . . . Escape Stasis . | . . . . Rewire . | . . . . Trap . | . . . . Miscellaneous . | . . . . Route ------- -11/Scrapyard -10/Materials -10/Mines -9/Materials History --------- Turn | Location | Event 30 | -11/Scrapyard | Discovered new exit (range 16) 51 | -11/Scrapyard | Entered Materials 162 | -10/Materials | Discovered new exit (range 11) 183 | -10/Materials | Entered Mines 190 | -10/Mines | Met a Derelict bent on vengeance 304 | -10/Mines | Build established: Mutant 308 | -10/Mines | Learned Materials security intel 495 | -10/Mines | Assembled infested the area 571 | -10/Mines | Discovered new exit (range 14) 619 | -10/Mines | Entered Materials 619 | -9/Materials | Evolved 2 slots: Power x1, Utility x1 787 | -9/Materials | Lost 3 parts (1n1u1w) 1204 | -9/Materials | Core integrity fell below 50% 1240 | -9/Materials | Destroyed 7 combat bots 1245 | -9/Materials | Lost 4 parts (1p2n1w) 1532 | -9/Materials | Core integrity fell below 20% 1653 | -9/Materials | Destroyed by G-34 Mercenary with Small Laser Last Messages --------------- 01600_ O-16 Technician: "IFF HANDSHAKE FAILED. SECURING TERMINAL." 01601_ ALERT: Hostiles spotted, dispatching reinforcements to Terminal M006. 01603_ U-05 Engineer works on Pressure Siphon. 01607_ Dropped Aluminum Leg. 01607_ Dropped Autogun. 01608_ Acquired 43 matter. 01608_ U-05 Engineer works on Pressure Siphon. 01610_ Acquired 52 matter. 01614_ U-05 Engineer works on Pressure Siphon. 01620_ Aluminum Leg destroyed. 01625_ U-05 Engineer works on Pressure Siphon. 01637_ K-01 Serf collects debris. 01640_ Autogun destroyed. 01640_ K-01 Serf collects debris. 01641_ U-05 Engineer completes Pressure Siphon. 01644_ K-01 Serf collects debris. 01649_ G-34 Mercenary destroyed. 01651_ K-01 Serf collects debris. Map ----- +----------------------------------------------------+ | ?????## "" ##?## ##??????????###### | | ?????## S"" ##?## ##??????????????## | | ??## ## "" ##### ####????????????## | | ??## ######+########+####???????####### | | ??## # ##??????######## | | #### #= """ ##??????### ! | | ####+##+## =+ """ ##??????## [%= | | # # %#* """ ##??????### = | | # /* # # """ ##??????### | | # / # # "R ##???????##"" | | #""" [# # """ ##???????##"T | | #""" ! + # ##???????##"" | | #"S ! # ############???????## | | #""" # ############???????####### | | # "" # ##?????????????????####### | | # = ! # ##?######????????????????? | | ##### #### ############# ???????????? | | ########## ####"T"###### ???????????? | | ???####?## k # ???????????? | | ????????## u= o # ???????????? | | ????????## [= <<< """ + ?????????? | | ????????## [<<< """ # ???????????? | | ????????#### <<< """ # ???????????? | | ????????####m <<< """ # ???????????? | | ??????????## # ???????????? | | ??????????## @ # ???????????? | | ?????????? # """ ""##???????????? | | ?????????? # =""" ""##???????????? | | ?????????? # %""" T"##???????????? | | ?????????? # """ ""##???????????? | | ?????????? + g ""##???????????? | | ?????????? # ? ##???????????? | | ?????????? # ? ##???????????? | | ?????????? # ###"?"######???????????? | | ?????????? # ####?#######???????????? | | ??????????## ???????????????????????? | | ??????????## ???????????????????????? | | ??????????## ???????????????????????? | | ??????????## ???????????????????????? | | ?????????? # ???????????????????????? | | ?????????? # ???????????????????????? | | ??????????????????????????????????????? | | ??????????????????????????????????????? | | ??????????????????????????????????????? | | ??????????????????????????????????????? | | ??????????????????????????????????????? | | ??????????????????????????????????????? | | ??????????????????????????????????????? | | ??????????????????????????????????????? | | ??????????????????????????????????????? | +----------------------------------------------------+ Best States ------------- Heat Dissipation 28 Energy Generation 17 Energy Capacity 400 Matter Stores 300 Matter Capacity 300 Sight Range 16 Terrain Scan Density 10 Evasion (%) 55 Item Schematics ----------------- Weight Redist. System | -9/Materials | Scanalyzed Signal Interpreter | -9/Materials | Scanalyzed Sml. Laser | -9/Materials | Scanalyzed Robot Schematics ------------------ None Fabricated ------------ Nothing Alien Tech Used ----------------- None Achievements -------------- None Challenges ------------ None Game ------ Seed IntegrityDimensionalPower Manual? 0 Play Time 00:14:51 Cumulative 7.4 hours Start 2024.09.12 @ 12:04:45 End 2024.09.12 @ 12:16:25 Sessions 1 Manual Loads 0 Difficulty Rogue Special Mode None Game No. 34 Rogue 34 Adventurer 0 Explorer 0 Win Type - Total 0 Types 0/0/0/0/0/0/0/0/0 Lore% 3 Gallery% 14 Achievement% 12 Wizard Run 0 Options --------- Layout 2 ASCII 0 Keyboard 0 Movement Mouse Keybinds 0 Fullscreen 1 Font 16/SmallcapsGlow Map View 55x47 Zoom Use 33% Tactical HUD 1 Map Filters NONE Filters NONE Steam 1 RUN: f26a15ca-f46a-4a5b-9b10-c8b1a88949bf